[Event "Titled Tuesday Blitz November 01 Early 2022"]
[White "Osmonbekov, Talaibek"]
[Black "Parligras, Mircea-Emilian"]
[WhiteFideId "2017253"]
[BlackFideId "1204297"]
[WhiteElo "2135"]
[BlackElo "2507"]
[Result "0-1"]
[Round "03"]
[TimeControl "180+1"]
[Date "2022.11.02"]
[WhiteClock "0:00:02"]
[BlackClock "0:00:05"]

1. d4 {[%clk 0:03:00]}  Nf6 {[%clk 0:02:59]} 2. Bf4 {[%clk 0:03:01]}  d5 {[%clk 0:02:55]} 3. Nc3 {[%clk 0:03:01]}  c5 {[%clk 0:02:53]} 4. e3 {[%clk 0:03:02]}  cxd4 {[%clk 0:02:53]} 5. exd4 {[%clk 0:03:01]}  a6 {[%clk 0:02:52]} 6. Nf3 {[%clk 0:03:01]}  Nc6 {[%clk 0:02:52]} 7. Ne5 {[%clk 0:03:01]}  Bd7 {[%clk 0:02:47]} 8. Be2 {[%clk 0:02:23]}  e6 {[%clk 0:02:44]} 9. O-O {[%clk 0:02:22]}  Qb6 {[%clk 0:02:26]} 10. Nxc6 {[%clk 0:01:55]}  Bxc6 {[%clk 0:02:24]} 11. Rb1 {[%clk 0:01:55]}  Be7 {[%clk 0:02:14]} 12. Re1 {[%clk 0:01:53]}  O-O {[%clk 0:02:12]} 13. Bd3 {[%clk 0:01:53]}  g6 {[%clk 0:01:51]} 14. Ne2 {[%clk 0:01:45]}  Bb5 {[%clk 0:01:49]} 15. c3 {[%clk 0:01:23]}  Bxd3 {[%clk 0:01:48]} 16. Qxd3 {[%clk 0:01:22]}  Qc6 {[%clk 0:01:39]} 17. Be5 {[%clk 0:01:09]}  Nd7 {[%clk 0:01:31]} 18. Qh3 {[%clk 0:00:40]}  Nxe5 {[%clk 0:01:19]} 19. dxe5 {[%clk 0:00:39]}  Rfc8 {[%clk 0:00:47]} 20. Nd4 {[%clk 0:00:36]}  Qe8 {[%clk 0:00:42]} 21. Rbd1 {[%clk 0:00:29]}  b5 {[%clk 0:00:40]} 22. Rd3 {[%clk 0:00:22]}  b4 {[%clk 0:00:37]} 23. Nxe6 {[%clk 0:00:13]}  fxe6 {[%clk 0:00:36]} 24. Qxe6+ {[%clk 0:00:13]}  Qf7 {[%clk 0:00:36]} 25. Qh3 {[%clk 0:00:12]}  bxc3 {[%clk 0:00:24]} 26. bxc3 {[%clk 0:00:13]}  Rc4 {[%clk 0:00:19]} 27. e6 {[%clk 0:00:11]}  Qf5 {[%clk 0:00:16]} 28. Qxf5 {[%clk 0:00:11]}  gxf5 {[%clk 0:00:16]} 29. Rxd5 {[%clk 0:00:12]}  Rf8 {[%clk 0:00:14]} 30. Rd7 {[%clk 0:00:11]}  Re8 {[%clk 0:00:13]} 31. Rd5 {[%clk 0:00:11]}  f4 {[%clk 0:00:12]} 32. Rf5 {[%clk 0:00:10]}  Kg7 {[%clk 0:00:10]} 33. Rf7+ {[%clk 0:00:08]}  Kg6 {[%clk 0:00:10]} 34. h4 {[%clk 0:00:08]}  Bxh4 {[%clk 0:00:09]} 35. Ra7 {[%clk 0:00:03]}  Rc6 {[%clk 0:00:08]} 36. e7 {[%clk 0:00:02]}  Bf6 {[%clk 0:00:05]} 0-1


[Site "https://www.chess.com"]

[Event "Titled Tuesday Blitz November 01 Early 2022"]
[White "Papasimakopoulos, Alexandros"]
[Black "Kodinets, Konstantin L."]
[WhiteFideId "4244125"]
[BlackFideId "4122011"]
[WhiteElo "2357"]
[BlackElo "2447"]
[Result "1-0"]
[Round "03"]
[TimeControl "180+1"]
[Date "2022.11.02"]
[WhiteClock "0:01:21"]
[BlackClock "0:00:31"]

1. d4 {[%clk 0:02:51]}  d6 {[%clk 0:02:59]} 2. Nf3 {[%clk 0:02:50]}  Nf6 {[%clk 0:02:59]} 3. c4 {[%clk 0:02:48]}  Nbd7 {[%clk 0:03:00]} 4. Nc3 {[%clk 0:02:48]}  c6 {[%clk 0:03:01]} 5. Bg5 {[%clk 0:02:49]}  h6 {[%clk 0:02:59]} 6. Bh4 {[%clk 0:02:49]}  g5 {[%clk 0:02:59]} 7. Bg3 {[%clk 0:02:49]}  Nh5 {[%clk 0:03:00]} 8. e3 {[%clk 0:02:48]}  Bg7 {[%clk 0:03:00]} 9. Nd2 {[%clk 0:02:47]}  Nxg3 {[%clk 0:02:53]} 10. hxg3 {[%clk 0:02:47]}  a6 {[%clk 0:02:54]} 11. Bd3 {[%clk 0:02:44]}  b5 {[%clk 0:02:54]} 12. Qf3 {[%clk 0:02:35]}  bxc4 {[%clk 0:02:39]} 13. Qxc6 {[%clk 0:02:34]}  Rb8 {[%clk 0:02:34]} 14. Qxc4 {[%clk 0:02:24]}  Rxb2 {[%clk 0:02:31]} 15. Nb3 {[%clk 0:02:16]}  Nb6 {[%clk 0:02:26]} 16. Qc6+ {[%clk 0:01:57]}  Bd7 {[%clk 0:02:23]} 17. Qb7 {[%clk 0:01:54]}  Na4 {[%clk 0:01:45]} 18. Nd1 {[%clk 0:01:48]}  O-O {[%clk 0:01:23]} 19. Nxb2 {[%clk 0:01:47]}  Nxb2 {[%clk 0:01:23]} 20. Bxa6 {[%clk 0:01:48]}  Ba4 {[%clk 0:01:15]} 21. O-O {[%clk 0:01:44]}  d5 {[%clk 0:00:44]} 22. Nc5 {[%clk 0:01:33]}  Qa5 {[%clk 0:00:33]} 23. Qxb2 {[%clk 0:01:32]}  Qxc5 {[%clk 0:00:33]} 24. dxc5 {[%clk 0:01:26]}  Bxb2 {[%clk 0:00:33]} 25. Rab1 {[%clk 0:01:27]}  Be5 {[%clk 0:00:31]} 26. Bb7 {[%clk 0:01:23]}  d4 {[%clk 0:00:31]} 27. exd4 {[%clk 0:01:23]}  Bxd4 {[%clk 0:00:31]} 28. Rb4 {[%clk 0:01:21]} 1-0


[Site "https://www.chess.com"]

[Event "Titled Tuesday Blitz November 01 Early 2022"]
[White "Postnikov, Daniil"]
[Black "Gharibyan, Mamikon"]
[WhiteFideId "4166329"]
[BlackFideId "13308300"]
[WhiteElo "2261"]
[BlackElo "2378"]
[Result "1/2-1/2"]
[Round "03"]
[TimeControl "180+1"]
[Date "2022.11.02"]
[WhiteClock "0:00:05"]
[BlackClock "0:00:04"]

1. d4 {[%clk 0:03:00]}  g6 {[%clk 0:03:00]} 2. c4 {[%clk 0:03:01]}  Bg7 {[%clk 0:03:00]} 3. Nf3 {[%clk 0:03:02]}  c5 {[%clk 0:03:00]} 4. d5 {[%clk 0:03:01]}  d6 {[%clk 0:02:59]} 5. e4 {[%clk 0:03:00]}  e6 {[%clk 0:02:58]} 6. Nc3 {[%clk 0:02:56]}  Nf6 {[%clk 0:02:57]} 7. h3 {[%clk 0:02:51]}  O-O {[%clk 0:02:55]} 8. Bf4 {[%clk 0:02:51]}  exd5 {[%clk 0:02:53]} 9. exd5 {[%clk 0:02:45]}  Re8+ {[%clk 0:02:49]} 10. Be2 {[%clk 0:02:44]}  Ne4 {[%clk 0:02:50]} 11. Nxe4 {[%clk 0:02:19]}  Rxe4 {[%clk 0:02:48]} 12. Bg5 {[%clk 0:02:20]}  Qe8 {[%clk 0:02:41]} 13. Nd2 {[%clk 0:02:20]}  Re5 {[%clk 0:02:15]} 14. Bf4 {[%clk 0:02:17]}  Bf5 {[%clk 0:02:07]} 15. g4 {[%clk 0:01:59]}  Bd3 {[%clk 0:01:56]} 16. Bxe5 {[%clk 0:01:59]}  Qxe5 {[%clk 0:01:08]} 17. Kf1 {[%clk 0:01:51]}  Qxb2 {[%clk 0:00:58]} 18. Bxd3 {[%clk 0:01:42]}  Qxa1 {[%clk 0:00:56]} 19. Qxa1 {[%clk 0:01:42]}  Bxa1 {[%clk 0:00:57]} 20. Ne4 {[%clk 0:01:38]}  Be5 {[%clk 0:00:57]} 21. Kg2 {[%clk 0:01:33]}  Nd7 {[%clk 0:00:56]} 22. Rf1 {[%clk 0:01:31]}  Bf4 {[%clk 0:00:55]} 23. a4 {[%clk 0:01:23]}  b6 {[%clk 0:00:54]} 24. Kf3 {[%clk 0:01:19]}  g5 {[%clk 0:00:54]} 25. Ke2 {[%clk 0:01:17]}  h6 {[%clk 0:00:54]} 26. Rh1 {[%clk 0:01:05]}  Ne5 {[%clk 0:00:46]} 27. f3 {[%clk 0:01:01]}  Ng6 {[%clk 0:00:46]} 28. Nf6+ {[%clk 0:00:55]}  Kg7 {[%clk 0:00:40]} 29. Nh5+ {[%clk 0:00:55]}  Kf8 {[%clk 0:00:40]} 30. Bxg6 {[%clk 0:00:53]}  fxg6 {[%clk 0:00:40]} 31. Nxf4 {[%clk 0:00:53]}  gxf4 {[%clk 0:00:41]} 32. Kf2 {[%clk 0:00:39]}  Re8 {[%clk 0:00:40]} 33. h4 {[%clk 0:00:37]}  Ke7 {[%clk 0:00:33]} 34. Re1+ {[%clk 0:00:21]}  Kd7 {[%clk 0:00:32]} 35. Rxe8 {[%clk 0:00:21]}  Kxe8 {[%clk 0:00:33]} 36. g5 {[%clk 0:00:22]}  hxg5 {[%clk 0:00:27]} 37. hxg5 {[%clk 0:00:23]}  Kd7 {[%clk 0:00:25]} 38. Ke2 {[%clk 0:00:23]}  a6 {[%clk 0:00:26]} 39. Kd3 {[%clk 0:00:21]}  Kc7 {[%clk 0:00:22]} 40. Ke4 {[%clk 0:00:19]}  b5 {[%clk 0:00:22]} 41. axb5 {[%clk 0:00:16]}  axb5 {[%clk 0:00:22]} 42. cxb5 {[%clk 0:00:13]}  Kb6 {[%clk 0:00:21]} 43. Kxf4 {[%clk 0:00:12]}  Kxb5 {[%clk 0:00:20]} 44. Ke4 {[%clk 0:00:10]}  c4 {[%clk 0:00:16]} 45. f4 {[%clk 0:00:09]}  Kc5 {[%clk 0:00:09]} 46. f5 {[%clk 0:00:07]}  gxf5+ {[%clk 0:00:09]} 47. Kxf5 {[%clk 0:00:08]}  c3 {[%clk 0:00:10]} 48. g6 {[%clk 0:00:07]}  c2 {[%clk 0:00:10]} 49. g7 {[%clk 0:00:08]}  c1=Q {[%clk 0:00:10]} 50. g8=Q {[%clk 0:00:08]}  Qf1+ {[%clk 0:00:05]} 51. Ke6 {[%clk 0:00:07]}  Qe2+ {[%clk 0:00:04]} 52. Kd7 {[%clk 0:00:06]}  Qb5+ {[%clk 0:00:05]} 53. Ke6 {[%clk 0:00:05]}  Qb7 {[%clk 0:00:04]} 54. Qg1+ {[%clk 0:00:04]}  Kc4 {[%clk 0:00:04]} 55. Qf1+ {[%clk 0:00:04]}  Kd4 {[%clk 0:00:04]} 56. Qf2+ {[%clk 0:00:04]}  Kc4 {[%clk 0:00:03]} 57. Qe2+ {[%clk 0:00:04]}  Kd4 {[%clk 0:00:03]} 58. Qf2+ {[%clk 0:00:05]}  Ke4 {[%clk 0:00:03]} 59. Qe2+ {[%clk 0:00:05]}  Kd4 {[%clk 0:00:04]} 60. Qf2+ {[%clk 0:00:05]} 1/2-1/2


[Site "https://www.chess.com"]

[Event "Titled Tuesday Blitz November 01 Early 2022"]
[White "Principe, Gerson"]
[Black "Gorodetzky, David"]
[WhiteFideId "3804550"]
[BlackFideId "2813416"]
[WhiteElo "2280"]
[BlackElo "2487"]
[Result "0-1"]
[Round "03"]
[TimeControl "180+1"]
[Date "2022.11.01"]
[WhiteClock "0:00:23"]
[BlackClock "0:00:59"]

1. Nf3 {[%clk 0:02:59]}  b6 {[%clk 0:02:59]} 2. g3 {[%clk 0:02:58]}  Bb7 {[%clk 0:02:59]} 3. Bg2 {[%clk 0:02:58]}  Nf6 {[%clk 0:03:00]} 4. O-O {[%clk 0:02:58]}  g6 {[%clk 0:03:00]} 5. b3 {[%clk 0:02:57]}  c5 {[%clk 0:03:00]} 6. Bb2 {[%clk 0:02:57]}  Bg7 {[%clk 0:03:01]} 7. c4 {[%clk 0:02:53]}  O-O {[%clk 0:03:01]} 8. d4 {[%clk 0:02:52]}  cxd4 {[%clk 0:03:01]} 9. Nxd4 {[%clk 0:02:40]}  Bxg2 {[%clk 0:03:00]} 10. Kxg2 {[%clk 0:02:41]}  d5 {[%clk 0:03:00]} 11. Nd2 {[%clk 0:02:36]}  e5 {[%clk 0:02:51]} 12. Nc2 {[%clk 0:02:15]}  d4 {[%clk 0:02:50]} 13. Nf3 {[%clk 0:01:58]}  Nc6 {[%clk 0:02:49]} 14. Re1 {[%clk 0:01:45]}  Re8 {[%clk 0:02:48]} 15. e4 {[%clk 0:01:45]}  d3 {[%clk 0:02:40]} 16. Na3 {[%clk 0:01:35]}  Qd7 {[%clk 0:02:35]} 17. Nb5 {[%clk 0:01:28]}  Rad8 {[%clk 0:02:24]} 18. Qd2 {[%clk 0:01:22]}  Nh5 {[%clk 0:01:32]} 19. h3 {[%clk 0:01:18]}  f5 {[%clk 0:01:32]} 20. Nc3 {[%clk 0:01:09]}  Nb4 {[%clk 0:01:32]} 21. Rad1 {[%clk 0:00:37]}  f4 {[%clk 0:01:29]} 22. Nd5 {[%clk 0:00:34]}  fxg3 {[%clk 0:01:21]} 23. Qxb4 {[%clk 0:00:26]}  gxf2 {[%clk 0:01:16]} 24. Kxf2 {[%clk 0:00:27]}  Qxh3 {[%clk 0:01:15]} 25. Rxd3 {[%clk 0:00:24]}  Rf8 {[%clk 0:01:09]} 26. Ne7+ {[%clk 0:00:22]}  Kh8 {[%clk 0:01:08]} 27. Rxd8 {[%clk 0:00:23]}  Qxf3+ {[%clk 0:01:08]} 28. Kg1 {[%clk 0:00:23]}  Qg4+ {[%clk 0:00:59]} 0-1


[Site "https://www.chess.com"]

[Event "Titled Tuesday Blitz November 01 Early 2022"]
[White "Reprintsev, Alexander"]
[Black "Szente Varga, Fruzsina"]
[WhiteFideId "14100541"]
[BlackFideId "712264"]
[WhiteElo "2230"]
[BlackElo "1994"]
[Result "0-1"]
[Round "03"]
[TimeControl "180+1"]
[Date "2022.11.02"]
[WhiteClock "0:00:12"]
[BlackClock "0:00:19"]

1. e4 {[%clk 0:03:00]}  e5 {[%clk 0:02:58]} 2. f4 {[%clk 0:02:57]}  d6 {[%clk 0:02:56]} 3. Nc3 {[%clk 0:02:55]}  Nc6 {[%clk 0:02:56]} 4. Bb5 {[%clk 0:02:54]}  Bd7 {[%clk 0:02:48]} 5. d3 {[%clk 0:02:51]}  a6 {[%clk 0:02:41]} 6. Ba4 {[%clk 0:02:50]}  b5 {[%clk 0:02:38]} 7. Bb3 {[%clk 0:02:49]}  Nd4 {[%clk 0:02:38]} 8. Nf3 {[%clk 0:02:42]}  Bg4 {[%clk 0:02:33]} 9. Nxe5 {[%clk 0:01:53]}  Nxb3 {[%clk 0:02:10]} 10. Qxg4 {[%clk 0:01:40]}  Nf6 {[%clk 0:01:26]} 11. Qe2 {[%clk 0:01:34]}  Nxa1 {[%clk 0:01:20]} 12. Nf3 {[%clk 0:01:33]}  Be7 {[%clk 0:01:15]} 13. O-O {[%clk 0:01:31]}  O-O {[%clk 0:01:15]} 14. Be3 {[%clk 0:01:30]}  Nxc2 {[%clk 0:01:15]} 15. Qxc2 {[%clk 0:01:29]}  c5 {[%clk 0:01:08]} 16. h3 {[%clk 0:01:25]}  d5 {[%clk 0:01:06]} 17. e5 {[%clk 0:01:22]}  d4 {[%clk 0:01:07]} 18. exf6 {[%clk 0:01:20]}  Bxf6 {[%clk 0:01:07]} 19. Bf2 {[%clk 0:01:12]}  dxc3 {[%clk 0:01:07]} 20. bxc3 {[%clk 0:01:13]}  Rc8 {[%clk 0:01:05]} 21. g4 {[%clk 0:01:08]}  b4 {[%clk 0:01:01]} 22. c4 {[%clk 0:01:04]}  Qd6 {[%clk 0:00:59]} 23. g5 {[%clk 0:00:47]}  Qxf4 {[%clk 0:00:56]} 24. gxf6 {[%clk 0:00:44]}  Qxf3 {[%clk 0:00:56]} 25. fxg7 {[%clk 0:00:43]}  Rfe8 {[%clk 0:00:56]} 26. h4 {[%clk 0:00:34]}  Re2 {[%clk 0:00:55]} 27. Qc1 {[%clk 0:00:30]}  Re6 {[%clk 0:00:38]} 28. h5 {[%clk 0:00:25]}  Qxh5 {[%clk 0:00:35]} 29. Bg3 {[%clk 0:00:24]}  Rg6 {[%clk 0:00:34]} 30. Qe1 {[%clk 0:00:21]}  Qh3 {[%clk 0:00:28]} 31. Rf3 {[%clk 0:00:20]}  Rxg7 {[%clk 0:00:23]} 32. Kf2 {[%clk 0:00:19]}  Qe6 {[%clk 0:00:20]} 33. Qh1 {[%clk 0:00:17]}  Re8 {[%clk 0:00:20]} 34. Qh4 {[%clk 0:00:12]}  Qe2+ {[%clk 0:00:19]} 35. Kg1 {[%clk 0:00:12]}  Qxf3 {[%clk 0:00:19]} 0-1


[Site "https://www.chess.com"]

[Event "Titled Tuesday Blitz November 01 Early 2022"]
[White "Ristic, Nebojsa B"]
[Black "Harsh Suresh"]
[WhiteFideId "935468"]
[BlackFideId "45018464"]
[WhiteElo "2320"]
[BlackElo "2180"]
[Result "0-1"]
[Round "03"]
[TimeControl "180+1"]
[Date "2022.11.02"]
[WhiteClock "0:00:04"]
[BlackClock "0:00:04"]

1. d4 {[%clk 0:03:00]}  g6 {[%clk 0:02:59]} 2. Bf4 {[%clk 0:03:01]}  Bg7 {[%clk 0:02:59]} 3. e3 {[%clk 0:03:01]}  d6 {[%clk 0:02:59]} 4. h3 {[%clk 0:03:01]}  Nf6 {[%clk 0:02:59]} 5. Nf3 {[%clk 0:03:00]}  O-O {[%clk 0:02:59]} 6. c3 {[%clk 0:03:01]}  c5 {[%clk 0:02:59]} 7. Nbd2 {[%clk 0:03:01]}  b6 {[%clk 0:02:59]} 8. Be2 {[%clk 0:03:00]}  Bb7 {[%clk 0:02:59]} 9. O-O {[%clk 0:03:00]}  Nbd7 {[%clk 0:02:59]} 10. a4 {[%clk 0:03:00]}  Qc7 {[%clk 0:02:59]} 11. Bh2 {[%clk 0:03:00]}  e5 {[%clk 0:02:59]} 12. dxe5 {[%clk 0:03:00]}  Nxe5 {[%clk 0:02:59]} 13. Nxe5 {[%clk 0:03:00]}  dxe5 {[%clk 0:02:59]} 14. Nc4 {[%clk 0:03:00]}  Nd7 {[%clk 0:02:44]} 15. Qd6 {[%clk 0:02:57]}  Qxd6 {[%clk 0:02:43]} 16. Nxd6 {[%clk 0:02:57]}  Bc6 {[%clk 0:02:43]} 17. Bb5 {[%clk 0:02:53]}  Bxb5 {[%clk 0:02:42]} 18. axb5 {[%clk 0:02:54]}  Rfb8 {[%clk 0:02:32]} 19. Ra6 {[%clk 0:02:48]}  Bf8 {[%clk 0:02:27]} 20. Nc4 {[%clk 0:02:47]}  f6 {[%clk 0:02:27]} 21. f4 {[%clk 0:02:25]}  exf4 {[%clk 0:02:20]} 22. Bxf4 {[%clk 0:02:24]}  Rb7 {[%clk 0:02:20]} 23. Rd1 {[%clk 0:02:15]}  Kf7 {[%clk 0:01:56]} 24. Kf2 {[%clk 0:01:55]}  Ke6 {[%clk 0:01:52]} 25. g4 {[%clk 0:01:46]}  Be7 {[%clk 0:01:32]} 26. Ke2 {[%clk 0:01:29]}  Nb8 {[%clk 0:01:31]} 27. Ra2 {[%clk 0:01:26]}  a5 {[%clk 0:01:30]} 28. Bxb8 {[%clk 0:01:15]}  Raxb8 {[%clk 0:01:28]} 29. b3 {[%clk 0:01:15]}  Ra8 {[%clk 0:01:20]} 30. Rad2 {[%clk 0:01:10]}  Rh8 {[%clk 0:00:57]} 31. Kf3 {[%clk 0:01:01]}  h5 {[%clk 0:00:56]} 32. Kg3 {[%clk 0:00:59]}  hxg4 {[%clk 0:00:49]} 33. hxg4 {[%clk 0:01:00]}  Rh7 {[%clk 0:00:40]} 34. Nb2 {[%clk 0:00:53]}  f5 {[%clk 0:00:32]} 35. gxf5+ {[%clk 0:00:51]}  gxf5 {[%clk 0:00:33]} 36. Nc4 {[%clk 0:00:51]}  Bf8 {[%clk 0:00:29]} 37. Rd8 {[%clk 0:00:48]}  Rbg7+ {[%clk 0:00:28]} 38. Kf3 {[%clk 0:00:36]}  Rh3+ {[%clk 0:00:26]} 39. Ke2 {[%clk 0:00:36]}  Be7 {[%clk 0:00:19]} 40. Rb8 {[%clk 0:00:35]}  Rg2+ {[%clk 0:00:18]} 41. Kd3 {[%clk 0:00:35]}  Bg5 {[%clk 0:00:09]} 42. Rxb6+ {[%clk 0:00:34]}  Ke7 {[%clk 0:00:10]} 43. Rf1 {[%clk 0:00:31]}  f4 {[%clk 0:00:10]} 44. Rb7+ {[%clk 0:00:25]}  Ke6 {[%clk 0:00:10]} 45. Rb6+ {[%clk 0:00:16]}  Ke7 {[%clk 0:00:10]} 46. Nxa5 {[%clk 0:00:16]}  Rxe3+ {[%clk 0:00:09]} 47. Kc4 {[%clk 0:00:16]}  Rc2 {[%clk 0:00:09]} 48. Nc6+ {[%clk 0:00:16]}  Kf7 {[%clk 0:00:07]} 49. Kxc5 {[%clk 0:00:14]}  Rcxc3+ {[%clk 0:00:07]} 50. Kb4 {[%clk 0:00:14]}  Rxb3+ {[%clk 0:00:08]} 51. Kc5 {[%clk 0:00:13]}  f3 {[%clk 0:00:07]} 52. Rb7+ {[%clk 0:00:12]}  Kg6 {[%clk 0:00:06]} 53. Nd4 {[%clk 0:00:11]}  Rbc3+ {[%clk 0:00:06]} 54. Kb4 {[%clk 0:00:10]}  Rcd3 {[%clk 0:00:06]} 55. Kc4 {[%clk 0:00:09]}  Ra3 {[%clk 0:00:06]} 56. Rb6+ {[%clk 0:00:10]}  Kh5 {[%clk 0:00:06]} 57. Rh1+ {[%clk 0:00:07]}  Kg4 {[%clk 0:00:06]} 58. Rg6 {[%clk 0:00:06]}  f2 {[%clk 0:00:06]} 59. Ne6 {[%clk 0:00:05]}  Ra4+ {[%clk 0:00:06]} 60. Kd5 {[%clk 0:00:04]}  Rd3+ {[%clk 0:00:04]} 61. Kc6 {[%clk 0:00:04]}  Rc4+ {[%clk 0:00:04]} 62. Kb7 {[%clk 0:00:04]}  Rd7+ {[%clk 0:00:04]} 63. Kb8 {[%clk 0:00:04]}  Rd5 {[%clk 0:00:04]} 0-1


[Site "https://www.chess.com"]

[Event "Titled Tuesday Blitz November 01 Early 2022"]
[White "Rose, Felix"]
[Black "Winterberg, Lukas"]
[WhiteFideId "5105722"]
[BlackFideId "24622702"]
[WhiteElo "2039"]
[BlackElo "2349"]
[Result "0-1"]
[Round "03"]
[TimeControl "180+1"]
[Date "2022.11.02"]
[WhiteClock "0:00:08"]
[BlackClock "0:00:10"]

1. e4 {[%clk 0:01:44]}  c5 {[%clk 0:02:57]} 2. Nf3 {[%clk 0:01:42]}  e6 {[%clk 0:02:57]} 3. d4 {[%clk 0:01:42]}  cxd4 {[%clk 0:02:58]} 4. Nxd4 {[%clk 0:01:42]}  Nc6 {[%clk 0:02:58]} 5. Nc3 {[%clk 0:01:42]}  Qc7 {[%clk 0:02:58]} 6. Be3 {[%clk 0:01:41]}  Nf6 {[%clk 0:02:58]} 7. Qf3 {[%clk 0:01:37]}  a6 {[%clk 0:02:52]} 8. O-O-O {[%clk 0:01:36]}  Bb4 {[%clk 0:02:45]} 9. Nxc6 {[%clk 0:01:35]}  bxc6 {[%clk 0:02:43]} 10. Bd4 {[%clk 0:01:35]}  e5 {[%clk 0:02:41]} 11. Qg3 {[%clk 0:01:35]}  Ng4 {[%clk 0:02:17]} 12. h3 {[%clk 0:01:23]}  d6 {[%clk 0:02:16]} 13. hxg4 {[%clk 0:01:19]}  exd4 {[%clk 0:02:15]} 14. Rxd4 {[%clk 0:01:20]}  Bc5 {[%clk 0:02:14]} 15. Rd2 {[%clk 0:01:14]}  Rb8 {[%clk 0:02:14]} 16. Bc4 {[%clk 0:01:10]}  Be6 {[%clk 0:01:42]} 17. Bb3 {[%clk 0:01:05]}  a5 {[%clk 0:01:39]} 18. Na4 {[%clk 0:00:57]}  Rb5 {[%clk 0:00:42]} 19. Nxc5 {[%clk 0:00:52]}  Rxc5 {[%clk 0:00:43]} 20. Qxd6 {[%clk 0:00:50]}  Qxd6 {[%clk 0:00:39]} 21. Rxd6 {[%clk 0:00:44]}  Bxg4 {[%clk 0:00:40]} 22. f3 {[%clk 0:00:32]}  Bc8 {[%clk 0:00:40]} 23. Rhd1 {[%clk 0:00:21]}  O-O {[%clk 0:00:39]} 24. Rd8 {[%clk 0:00:18]}  Be6 {[%clk 0:00:20]} 25. Bxe6 {[%clk 0:00:16]}  fxe6 {[%clk 0:00:20]} 26. Rxf8+ {[%clk 0:00:15]}  Kxf8 {[%clk 0:00:21]} 27. Rd7 {[%clk 0:00:15]}  h5 {[%clk 0:00:21]} 28. Kd2 {[%clk 0:00:14]}  Rg5 {[%clk 0:00:20]} 29. g4 {[%clk 0:00:10]}  hxg4 {[%clk 0:00:20]} 30. fxg4 {[%clk 0:00:10]}  Rxg4 {[%clk 0:00:21]} 31. Rd6 {[%clk 0:00:11]}  Rxe4 {[%clk 0:00:20]} 32. Rxc6 {[%clk 0:00:11]}  Ke7 {[%clk 0:00:16]} 33. Kd3 {[%clk 0:00:10]}  Rf4 {[%clk 0:00:16]} 34. Ra6 {[%clk 0:00:10]}  Rf5 {[%clk 0:00:13]} 35. c4 {[%clk 0:00:10]}  g5 {[%clk 0:00:13]} 36. Ra7+ {[%clk 0:00:08]}  Kf6 {[%clk 0:00:13]} 37. Kd4 {[%clk 0:00:09]}  g4 {[%clk 0:00:13]} 38. c5 {[%clk 0:00:09]}  g3 {[%clk 0:00:14]} 39. Ra8 {[%clk 0:00:09]}  Kf7 {[%clk 0:00:12]} 40. Rh8 {[%clk 0:00:09]}  g2 {[%clk 0:00:12]} 41. Rh7+ {[%clk 0:00:09]}  Kf6 {[%clk 0:00:11]} 42. Rh6+ {[%clk 0:00:09]}  Kg7 {[%clk 0:00:10]} 43. Rh1 {[%clk 0:00:08]}  gxh1=Q {[%clk 0:00:10]} 0-1


[Site "https://www.chess.com"]

[Event "Titled Tuesday Blitz November 01 Early 2022"]
[White "Rosenberg, Evan S"]
[Black "Goh, Zi Han"]
[WhiteFideId "2019299"]
[BlackFideId "5819156"]
[WhiteElo "2377"]
[BlackElo "2026"]
[Result "1-0"]
[Round "03"]
[TimeControl "180+1"]
[Date "2022.11.02"]
[WhiteClock "0:00:04"]
[BlackClock "0:00:06"]

1. d4 {[%clk 0:03:00]}  d5 {[%clk 0:02:57]} 2. Nf3 {[%clk 0:03:00]}  Nf6 {[%clk 0:02:54]} 3. c3 {[%clk 0:03:00]}  e6 {[%clk 0:02:41]} 4. Bf4 {[%clk 0:02:57]}  Bd6 {[%clk 0:02:33]} 5. e3 {[%clk 0:02:57]}  O-O {[%clk 0:02:31]} 6. Nbd2 {[%clk 0:02:50]}  c5 {[%clk 0:02:21]} 7. Bg3 {[%clk 0:02:50]}  Nc6 {[%clk 0:02:19]} 8. Bd3 {[%clk 0:02:46]}  Re8 {[%clk 0:02:09]} 9. Ne5 {[%clk 0:01:58]}  Qc7 {[%clk 0:01:47]} 10. f4 {[%clk 0:01:48]}  g6 {[%clk 0:01:31]} 11. O-O {[%clk 0:01:42]}  Nd7 {[%clk 0:01:30]} 12. h4 {[%clk 0:01:35]}  Nf8 {[%clk 0:01:20]} 13. h5 {[%clk 0:01:33]}  f6 {[%clk 0:01:09]} 14. Nxc6 {[%clk 0:01:22]}  bxc6 {[%clk 0:01:09]} 15. hxg6 {[%clk 0:01:23]}  hxg6 {[%clk 0:01:08]} 16. e4 {[%clk 0:01:08]}  cxd4 {[%clk 0:01:03]} 17. cxd4 {[%clk 0:01:07]}  Qb6 {[%clk 0:00:46]} 18. Nb3 {[%clk 0:00:49]}  e5 {[%clk 0:00:45]} 19. fxe5 {[%clk 0:00:46]}  fxe5 {[%clk 0:00:46]} 20. exd5 {[%clk 0:00:31]}  cxd5 {[%clk 0:00:37]} 21. Rxf8+ {[%clk 0:00:31]}  Rxf8 {[%clk 0:00:34]} 22. Bxg6 {[%clk 0:00:25]}  a5 {[%clk 0:00:19]} 23. Qh5 {[%clk 0:00:25]}  Ra7 {[%clk 0:00:19]} 24. Kh1 {[%clk 0:00:16]}  exd4 {[%clk 0:00:13]} 25. Qxd5+ {[%clk 0:00:15]}  Kg7 {[%clk 0:00:11]} 26. Bxd6 {[%clk 0:00:13]}  Kxg6 {[%clk 0:00:11]} 27. Bxf8 {[%clk 0:00:09]}  Rh7+ {[%clk 0:00:11]} 28. Kg1 {[%clk 0:00:10]}  d3+ {[%clk 0:00:12]} 29. Bc5 {[%clk 0:00:10]}  Qf6 {[%clk 0:00:09]} 30. Qxd3+ {[%clk 0:00:10]}  Bf5 {[%clk 0:00:07]} 31. Qg3+ {[%clk 0:00:10]}  Kf7 {[%clk 0:00:07]} 32. Rf1 {[%clk 0:00:08]}  Rg7 {[%clk 0:00:07]} 33. Qc7+ {[%clk 0:00:07]}  Kg8 {[%clk 0:00:07]} 34. Qb8+ {[%clk 0:00:05]}  Kh7 {[%clk 0:00:07]} 35. Bd4 {[%clk 0:00:05]}  Qg6 {[%clk 0:00:03]} 36. Bxg7 {[%clk 0:00:04]}  Kxg7 {[%clk 0:00:04]} 37. Qe5+ {[%clk 0:00:04]}  Kh6 {[%clk 0:00:04]} 38. Qxf5 {[%clk 0:00:04]}  Qb6+ {[%clk 0:00:04]} 39. Qf2 {[%clk 0:00:04]}  a4 {[%clk 0:00:05]} 40. Qxb6+ {[%clk 0:00:04]}  Kg7 {[%clk 0:00:05]} 41. Rf6 {[%clk 0:00:04]}  Kh8 {[%clk 0:00:06]} 42. Rf7 {[%clk 0:00:04]} 1-0


[Site "https://www.chess.com"]